fUSD/lending_fUSD_20240619
["ID","MTS","AMOUNT","RATE_DAILY","PERIOD"]
[329861633,1718770235255,-500.0,0.00013698,2]
[329861634,1718770235265,-500.0,0.00013698,2]
[329861635,1718770235274,-819.16,0.00013698,2]
[329861636,1718770235283,-504.95975592,0.00013698,2]
[329861637,1718770235292,-500.0,0.00013698,2]
[329861638,1718770235302,-500.0,0.00013698,2]
[329861639,1718770235313,-633.55,0.00013698,2]
[329861640,1718770235323,-500.0,0.00013698,2]
[329861641,1718770235333,-500.0,0.00013698,2]
[329861642,1718770235343,-500.0,0.00013698,2]
[329861643,1718770235352,-1076.67,0.00013698,2]
[329861644,1718770235362,-691.65,0.00013698,2]
[329861645,1718770235371,-500.0,0.00013698,2]
[329861646,1718770235382,-856.14,0.00013698,2]
[329861647,1718770235391,-500.0,0.00013698,2]
[329861648,1718770235400,-509.16813201,0.00013698,2]
[329861649,1718770235408,-1136.4,0.00013698,2]
[329861650,1718770235418,-500.0,0.00013698,2]
[329861651,1718770235427,-500.0,0.00013698,2]
[329861652,1718770235436,-507.83936402,0.00013698,2]
[329861653,1718770235446,-2047.21,0.00013698,2]
[329861654,1718770235455,-500.0,0.00013698,2]
[329861655,1718770235465,-500.0,0.00013698,2]
[329861656,1718770235474,-1347.49,0.00013698,2]
[329861657,1718770235484,-500.0,0.00013698,2]
[329861658,1718770235494,-1413.41,0.00013698,2]
[329861659,1718770235503,-501.66543451,0.00013698,2]
[329861660,1718770235512,-500.0,0.00013698,2]
[329861661,1718770235522,-503.83088196,0.00013698,2]
[329861662,1718770235532,-500.0,0.00013698,2]
[329861663,1718770235541,-500.0,0.00013698,2]
[329861664,1718770235551,-902.37,0.00013698,2]
[329861665,1718770235560,-599.13854422,0.00013698,2]
[329861666,1718770235570,-500.0,0.00013698,2]
[329861667,1718770235580,-815.83,0.00013698,2]
[329861668,1718770235589,-500.0,0.00013698,2]
[329861669,1718770235599,-500.0,0.00013698,2]
[329861670,1718770235609,-882.11,0.00013698,2]
[329861671,1718770235620,-651.58,0.00013698,2]
[329861672,1718770235632,-500.0,0.00013698,2]
[329861673,1718770235640,-500.0,0.00013698,2]
[329861674,1718770235650,-640.37,0.00013698,2]
[329861675,1718770235659,-1010.17,0.00013698,2]
[329861676,1718770235668,-500.0,0.00013698,2]
[329861677,1718770235679,-502.81090028,0.00013698,2]
[329861678,1718770235691,-500.0,0.00013698,2]
[329861679,1718770235702,-992.32,0.00013698,2]
[329861680,1718770235713,-808.34,0.00013698,2]
[329861681,1718770235724,-980.9,0.00013698,2]
[329861682,1718770235735,-500.0,0.00013698,2]
[329861683,1718770235744,-601.44,0.00013698,2]
[329861684,1718770235755,-521.73934721,0.00013698,2]
[329861685,1718770235764,-1246.87,0.00013698,2]
[329861686,1718770235773,-2485.77,0.00013698,2]
[329861687,1718770235783,-500.0,0.00013698,2]
[329861688,1718770236043,-500.0,0.00013698,2]
[329861689,1718770236054,-995.63,0.00013698,2]
[329861690,1718770236064,-500.0,0.00013698,2]
[329861691,1718770236075,-500.0,0.00013698,2]
[329861692,1718770236085,-930.75,0.00013698,2]
[329861693,1718770236094,-500.0,0.00013698,2]
[329861694,1718770236104,-1682.25,0.00013698,2]
[329861695,1718770236113,-500.0,0.00013698,2]
[329861696,1718770236122,-500.0,0.00013698,2]
[329861697,1718770236132,-580.78,0.00013698,2]
[329861698,1718770236142,-500.0,0.00013698,2]
[329861699,1718770236151,-500.0,0.00013698,2]
[329861700,1718770236160,-500.0,0.00013698,2]
[329861701,1718770236169,-500.0,0.00013698,2]
[329861702,1718770236178,-830.02,0.00013698,2]
[329861703,1718770236187,-500.0,0.00013698,2]
[329861704,1718770236196,-504.71,0.00013698,2]
[329861705,1718770236205,-1366.98,0.00013698,2]
[329861706,1718770236215,-500.0,0.00013698,2]
[329861707,1718770236224,-686.74,0.00013698,2]
[329861708,1718770236233,-500.0,0.00013698,2]
[329861709,1718770236242,-500.0,0.00013698,2]
[329861710,1718770236251,-643.6,0.00013698,2]
[329861711,1718770236260,-654.46,0.00013698,2]
[329861712,1718770236269,-500.0,0.00013698,2]
[329861713,1718770236278,-500.0,0.00013698,2]
[329861714,1718770236287,-1062.23,0.00013698,2]
[329861715,1718770236298,-972.98,0.00013698,2]
[329861716,1718770236309,-1888.15,0.00013698,2]
[329861717,1718770236319,-653.91,0.00013698,2]
[329861718,1718770236330,-500.0,0.00013698,2]
[329861719,1718770236339,-500.0,0.00013698,2]
[329861720,1718770236350,-2115.54,0.00013698,2]
[329861721,1718770236360,-500.0,0.00013698,2]
[329861722,1718770236369,-500.0,0.00013698,2]
[329861723,1718770236379,-500.0,0.00013698,2]
[329861724,1718770236390,-500.0,0.00013698,2]
[329861725,1718770236400,-500.0,0.00013698,2]
[329861726,1718770236411,-500.0,0.00013698,2]
[329861727,1718770236420,-500.0,0.00013698,2]
[329861728,1718770236430,-500.0,0.00013698,2]
[329861729,1718770236439,-500.0,0.00013698,2]
[329861730,1718770236448,-500.0,0.00013698,2]
[329861731,1718770236457,-1816.05,0.00013698,2]
[329861732,1718770236466,-500.0,0.00013698,2]
[329861733,1718770236475,-500.0,0.00013698,2]
[329861734,1718770236485,-380.73220079,0.00013698,2]
[329861735,1718770236494,-2146.61,0.00013698,2]
[329861736,1718770236503,-500.0,0.00013698,2]
[329861737,1718770236513,-500.0,0.00013698,2]
[329861738,1718770236522,-500.0,0.00013698,2]
[329861739,1718770236531,-501.8169525,0.00013698,2]
[329861740,1718770236540,-375.09095626,0.00013698,2]
[329861741,1718770236549,-500.0,0.00013698,2]
[329861742,1718770236558,-500.0,0.00013698,2]
[329861743,1718770236568,-500.0,0.00013698,2]
[329861744,1718770236580,-500.0,0.00013698,2]
[329861745,1718770236590,-500.0,0.00013698,2]
[329861746,1718770236600,-500.0,0.00013698,2]
[329861747,1718770236608,-500.0,0.00013698,2]
[329861748,1718770236618,-500.0,0.00013698,2]
[329861749,1718770236627,-516.12762557,0.00013698,2]
[329861750,1718770236636,-500.0,0.00013698,2]
[329861751,1718770236646,-500.0,0.00013698,2]
[329861752,1718770236655,-500.0,0.00013698,2]
[329861753,1718770236664,-500.0,0.00013698,2]
[329861754,1718770236673,-1028.34,0.00013698,2]
[329861755,1718770236683,-863.56,0.00013698,2]
[329861756,1718770236692,-500.0,0.00013698,2]
[329861757,1718770236701,-500.0,0.00013698,2]
[329861758,1718770236712,-500.0,0.00013698,2]
[329861759,1718770236722,-980.56,0.00013698,2]
[329861760,1718770236731,-500.0,0.00013698,2]
[329861761,1718770236740,-500.0,0.00013698,2]
[329861762,1718770236750,-500.0,0.00013698,2]
[329861763,1718770236759,-500.0,0.00013698,2]
[329861764,1718770236768,-500.0,0.00013698,2]
[329861765,1718770236778,-500.0,0.00013698,2]
[329861766,1718770236787,-500.0,0.00013698,2]
[329861767,1718770236797,-500.0,0.00013698,2]
[329861768,1718770236806,-500.0,0.00013698,2]
[329861769,1718770236816,-500.0,0.00013698,2]
[329861770,1718770236825,-500.0,0.00013698,2]
[329861771,1718770236834,-500.0,0.00013698,2]
[329861772,1718770236844,-500.0,0.00013698,2]
[329861773,1718770236853,-689.01,0.00013698,2]
[329861774,1718770236863,-692.61,0.00013698,2]
[329861775,1718770236875,-500.0,0.00013698,2]
[329861776,1718770236885,-500.0,0.00013698,2]
[329861777,1718770236895,-1145.32,0.00013698,2]
[329861778,1718770236904,-500.0,0.00013698,2]
[329861779,1718770236916,-500.0,0.00013698,2]
[329861780,1718770236926,-507.88,0.00013698,2]
[329861781,1718770236936,-500.0,0.00013698,2]
[329861782,1718770236946,-511.56360631,0.00013698,2]
[329861783,1718770236956,-500.0,0.00013698,2]
[329861784,1718770236966,-1059.55,0.00013698,2]
[329861785,1718770236976,-500.0,0.00013698,2]
[329861786,1718770236986,-500.0,0.00013698,2]
[329861787,1718770236999,-304.09860746,0.00013698,2]
[329861788,1718770237015,-524.96369684,0.00013698,2]
[329861789,1718770237025,-500.0,0.00013698,2]
[329861790,1718770237036,-500.0,0.00013698,2]
[329861791,1718770237047,-500.0,0.00013698,2]
[329861792,1718770237057,-500.0,0.00013698,2]
[329861793,1718770237067,-500.0,0.00013698,2]
[329861794,1718770237077,-500.0,0.00013698,2]
[329861795,1718770237087,-500.0,0.00013698,2]
[329861796,1718770237096,-500.0,0.00013698,2]
[329861797,1718770237106,-161.775095,0.00013698,2]
[329861798,1718770237115,-500.0,0.00013698,2]
[329861799,1718770237127,-500.0,0.00013698,2]
[329861800,1718770237136,-725.98,0.00013698,2]
[329861801,1718770237145,-500.0,0.00013698,2]
[329861802,1718770237154,-562.70374991,0.00013698,2]
[329861803,1718770237163,-500.0,0.00013698,2]
[329861804,1718770237173,-956.89,0.00013698,2]
[329861805,1718770237182,-2093.68,0.00013698,2]
[329861806,1718770237192,-500.0,0.00013698,2]
[329861807,1718770237202,-1595.15,0.00013698,2]
[329861808,1718770237211,-500.0,0.00013698,2]
[329861809,1718770237221,-500.0,0.00013698,2]
[329861810,1718770237231,-1653.32,0.00013698,2]
[329861811,1718770237240,-500.0,0.00013698,2]
[329861812,1718770237250,-500.0,0.00013698,2]
[329861813,1718770237259,-922.02,0.00013698,2]
[329861814,1718770237269,-500.0,0.00013698,2]
[329861815,1718770237279,-500.0,0.00013698,2]
[329861816,1718770237288,-1050.1,0.00013698,2]
[329861817,1718770237298,-500.0,0.00013698,2]
[329861818,1718770237308,-1451.95,0.00013698,2]
[329861819,1718770237318,-1532.48,0.00013698,2]
[329861820,1718770237328,-151.0,0.00013698,2]
[329861821,1718770237337,-151.0,0.00013698,2]
[329861822,1718770237347,-151.0,0.00013698,2]
[329861823,1718770237356,-943.39,0.00013698,2]
[329861824,1718770237366,-151.0,0.00013698,2]
[329861825,1718770237376,-756.51,0.00013698,2]
[329861826,1718770237386,-500.0,0.00013698,2]
[329861828,1718770237396,-500.0,0.00013698,2]
[329861830,1718770237406,-500.0,0.00013698,2]
[329861832,1718770237415,-500.0,0.00013698,2]
[329861834,1718770237425,-500.0,0.00013698,2]
[329861836,1718770237436,-151.0,0.00013698,2]
[329861838,1718770237445,-1559.21,0.00013698,2]
[329861840,1718770237455,-151.0,0.00013698,2]
[329861841,1718770237465,-151.0,0.00013698,2]
[329861842,1718770237475,-270.68615,0.00013698,2]
[329861843,1718770237485,-500.0,0.00013698,2]
[329861844,1718770237495,-500.0,0.00013698,2]
[329861845,1718770237505,-500.0,0.00013698,2]
[329861846,1718770237516,-502.99288524,0.00013698,2]
[329861847,1718770237526,-2330.69,0.00013698,2]
[329861848,1718770237536,-500.0,0.00013698,2]
[329861849,1718770237545,-500.0,0.00013698,2]
[329861850,1718770237555,-500.0,0.00013698,2]
[329861851,1718770237564,-873.66,0.00013698,2]
[329861852,1718770237573,-349.12387928,0.00013698,2]
[329861853,1718770237583,-667.85,0.00013698,2]
[329861854,1718770237593,-500.0,0.00013698,2]
[329861855,1718770237603,-500.0,0.00013698,2]
[329861856,1718770237612,-500.0,0.00013698,2]
[329861857,1718770237621,-500.0,0.00013698,2]
[329861858,1718770237631,-500.0,0.00013698,2]
[329861859,1718770237640,-500.0,0.00013698,2]
[329861860,1718770237650,-665.8,0.00013698,2]
[329861861,1718770237659,-500.0,0.00013698,2]
[329861862,1718770237669,-1846.22,0.00013698,2]
[329861863,1718770237679,-559.16,0.00013698,2]
[329861864,1718770237688,-2958.84,0.00013698,2]
[329861865,1718770237698,-500.0,0.00013698,2]
[329861866,1718770237707,-1973.84,0.00013698,2]
[329861867,1718770237716,-500.0,0.00013698,2]
[329861868,1718770237726,-514.96984853,0.00013698,2]
[329861869,1718770237736,-503.38130521,0.00013698,2]
[329861870,1718770237745,-151.0,0.00013698,2]
[329861871,1718770237755,-151.0,0.00013698,2]
[329861872,1718770237764,-1170.16,0.00013698,2]
[329861873,1718770237774,-151.0,0.00013698,2]
[329861874,1718770237784,-151.0,0.00013698,2]
[329861875,1718770237793,-532.69127043,0.00013698,2]
[329861876,1718770237802,-508.44,0.00013698,2]
[329861877,1718770237812,-560.05619741,0.00013698,2]
[329861878,1718770237821,-500.0,0.00013698,2]
[329861879,1718770237831,-813.3,0.00013698,2]
[329861881,1718770237840,-151.0,0.00013698,2]
[329861883,1718770237849,-500.0,0.00013698,2]
[329861885,1718770237859,-151.0,0.00013698,2]
[329861886,1718770237869,-500.0,0.00013698,2]
[329861888,1718770237879,-151.0,0.00013698,2]
[329861890,1718770237888,-1537.99,0.00013698,2]
[329861892,1718770237899,-500.0,0.00013698,2]
[329861893,1718770237908,-151.0,0.00013698,2]
[329861894,1718770237918,-539.20614795,0.00013698,2]
[329861895,1718770237927,-500.0,0.00013698,2]
[329861896,1718770237937,-500.0,0.00013698,2]
[329861897,1718770237946,-558.07549374,0.00013698,2]
[329861898,1718770237955,-726.38,0.00013698,2]
[329861899,1718770237965,-1374.46,0.00013698,2]
[329861900,1718770237975,-500.0,0.00013698,2]
[329861901,1718770237984,-500.0,0.00013698,2]
[329861902,1718770237995,-1737.96,0.00013698,2]
[329861903,1718770238009,-1026.22,0.00013698,5]
[329861904,1718770238019,-500.0,0.00013698,2]
[329861905,1718770238030,-500.0,0.00013698,2]
[329861906,1718770238039,-645.46,0.00013698,2]
[329861907,1718770238051,-500.0,0.00013698,2]
[329861908,1718770238061,-500.0,0.00013698,2]
[329861909,1718770238070,-500.0,0.00013698,2]
[329861910,1718770238081,-500.0,0.00013698,2]
[329861911,1718770238091,-507.91,0.00013698,2]
[329861912,1718770238100,-500.0,0.00013698,2]
[329861913,1718770238110,-500.0,0.00013698,2]
[329861914,1718770238119,-500.0,0.00013698,2]
[329861915,1718770238129,-500.0,0.00013698,2]
[329861916,1718770238139,-500.0,0.00013698,2]
[329861917,1718770238148,-1156.03,0.00013698,2]
[329861918,1718770238158,-1813.84,0.00013698,2]
[329861919,1718770238167,-500.0,0.00013698,2]
[329861920,1718770238176,-500.0,0.00013698,2]
[329861921,1718770238185,-250.0,0.00013698,2]
[329861922,1718770238194,-500.0,0.00013698,2]
[329861923,1718770238203,-500.0,0.00013698,2]
[329861924,1718770238213,-500.0,0.00013698,2]
[329861925,1718770238223,-500.0,0.00013698,2]
[329861926,1718770238232,-500.0,0.00013698,2]
[329861927,1718770238241,-500.0,0.00013698,2]
[329861928,1718770238251,-500.0,0.00013698,2]
[329861929,1718770238260,-1785.65,0.00013698,2]
[329861930,1718770238270,-500.0,0.00013698,2]
[329861931,1718770238280,-500.0,0.00013698,2]
[329861932,1718770238289,-1387.26,0.00013698,2]
[329861933,1718770238299,-500.0,0.00013698,2]
[329861934,1718770238310,-1430.86,0.00013698,2]
[329861935,1718770238320,-500.0,0.00013698,2]
[329861936,1718770238329,-500.0,0.00013698,2]
[329861937,1718770238340,-500.0,0.00013698,2]
[329861938,1718770238350,-500.0,0.00013698,2]
[329861939,1718770238360,-1343.36,0.00013698,2]
[329861940,1718770238369,-2116.79,0.00013698,2]
[329861941,1718770238379,-500.0,0.00013698,2]
[329861942,1718770238388,-500.0,0.00013698,2]
[329861943,1718770238397,-2139.99,0.00013698,2]
[329861944,1718770238407,-500.0,0.00013698,2]
[329861945,1718770238416,-743.36,0.00013698,2]
[329861946,1718770238425,-500.0,0.00013698,2]
[329861947,1718770238435,-500.0,0.00013698,2]
[329861948,1718770238444,-500.0,0.00013698,2]
[329861949,1718770238453,-500.0,0.00013698,2]
[329861950,1718770238463,-934.81,0.00013698,2]
[329861951,1718770238473,-500.0,0.00013698,2]
[329861952,1718770238483,-1262.61,0.00013698,2]
[329861953,1718770238492,-1718.16,0.00013698,2]
[329861954,1718770238502,-500.0,0.00013698,2]
[329861955,1718770238511,-765.13,0.00013698,2]
[329861956,1718770238521,-578.74254647,0.00013698,2]
[329861957,1718770238530,-500.0,0.00013698,2]
[329861958,1718770238539,-500.0,0.00013698,2]
[329861959,1718770238548,-500.0,0.00013698,2]
[329861960,1718770238558,-626.44,0.00013698,2]
[329861961,1718770238567,-1710.02,0.00013698,2]
[329861962,1718770238577,-716.12,0.00013698,2]
[329861963,1718770238586,-1405.91,0.00013698,2]
[329861964,1718770238595,-213.50864823,0.00013698,2]
[329861965,1718770238605,-500.0,0.00013698,2]
[329861966,1718770238614,-500.0,0.00013698,2]
[329861967,1718770238624,-500.0,0.00013698,2]
[329861968,1718770238638,-1427.65,0.00013698,2]
[329861969,1718770238648,-500.0,0.00013698,2]
[329861970,1718770238658,-500.0,0.00013698,2]
[329861971,1718770238667,-2868.55,0.00013698,2]
[329861972,1718770238677,-500.0,0.00013698,2]
[329861973,1718770238686,-504.05708158,0.00013698,2]
[329861974,1718770238696,-500.0,0.00013698,2]
[329861975,1718770238705,-2326.84,0.00013698,2]
[329861976,1718770238715,-2091.45,0.00013698,2]
[329861977,1718770238726,-500.0,0.00013698,2]
[329861978,1718770238736,-500.0,0.00013698,2]
[329861979,1718770238745,-500.0,0.00013698,2]
[329861980,1718770238754,-500.0,0.00013698,2]
[329861981,1718770238764,-500.0,0.00013698,2]
[329861982,1718770238774,-500.0,0.00013698,2]
[329861983,1718770238783,-500.0,0.00013698,2]
[329861984,1718770238793,-546.2,0.00013698,2]
[329861985,1718770238803,-2000.0,0.00013698,2]
[329861986,1718770238812,-500.0,0.00013698,2]
[329861987,1718770238823,-500.0,0.00013698,2]
[329861988,1718770238832,-500.0,0.00013698,2]
[329861989,1718770238842,-880.74,0.00013698,2]
[329861990,1718770238852,-2497.67,0.00013698,2]
[329861991,1718770238862,-506.44651569,0.00013698,2]
[329861992,1718770238871,-897.24,0.00013698,2]
[329861993,1718770238882,-500.0,0.00013698,2]
[329861994,1718770238891,-500.0,0.00013698,2]
[329861995,1718770238901,-575.7,0.00013698,2]
[329861996,1718770238911,-500.0,0.00013698,2]
[329861997,1718770238920,-2010.44997149,0.00013698,2]
[329861998,1718770238930,-488.56253255,0.00013698,2]
[329861999,1718770238940,-500.0,0.00013698,2]
[329862000,1718770238950,-500.0,0.00013698,2]
[329862001,1718770238959,-500.0,0.00013698,2]
[329862002,1718770238968,-500.0,0.00013698,2]
[329862003,1718770238978,-500.0,0.00013698,2]
[329862004,1718770238988,-500.0,0.00013698,2]
[329862005,1718770239000,-539.44994603,0.00013698,2]
[329862006,1718770239012,-500.0,0.00013698,2]
[329862007,1718770239021,-500.0,0.00013698,2]
[329862008,1718770239031,-611.85,0.00013698,2]
[329862009,1718770239042,-500.0,0.00013698,2]
[329862010,1718770239052,-151.0,0.00013698,2]
[329862011,1718770239062,-730.25,0.00013698,2]
[329862012,1718770239072,-151.0,0.00013698,2]
[329862013,1718770239083,-500.0,0.00013698,2]
[329862014,1718770239092,-151.0,0.00013698,2]
[329862015,1718770239102,-500.0,0.00013698,2]
[329862016,1718770239112,-151.0,0.00013698,2]
[329862017,1718770239122,-2666.15,0.00013698,2]
[329862018,1718770239133,-500.0,0.00013698,2]
[329862019,1718770239142,-500.0,0.00013698,2]
[329862020,1718770239152,-151.0,0.00013698,2]
[329862021,1718770239162,-500.0,0.00013698,2]
[329862022,1718770239172,-500.0,0.00013698,2]
[329862023,1718770239181,-500.0,0.00013698,2]
[329862024,1718770239191,-500.0,0.00013698,2]
[329862025,1718770239200,-1652.83,0.00013698,2]
[329862026,1718770239210,-1652.83,0.00013698,2]
[329862027,1718770239219,-500.0,0.00013698,2]
[329862028,1718770239229,-1652.83,0.00013698,2]
[329862029,1718770239238,-1652.83,0.00013698,2]
[329862030,1718770239249,-1652.83,0.00013698,2]
[329862031,1718770239259,-1175.32,0.00013698,2]
[329862032,1718770239268,-500.0,0.00013698,2]
[329862033,1718770239278,-500.0,0.00013698,2]
[329862034,1718770239287,-529.42635598,0.00013698,2]
[329862035,1718770239297,-500.0,0.00013698,2]
[329862036,1718770239306,-500.0,0.00013698,2]
[329862037,1718770239316,-500.0,0.00013698,2]
[329862038,1718770239325,-500.0,0.00013698,2]
[329862039,1718770239335,-500.0,0.00013698,2]
[329862040,1718770239345,-1652.83,0.00013698,2]
[329862041,1718770239355,-500.0,0.00013698,2]
[329862042,1718770239364,-500.0,0.00013698,2]
[329862043,1718770239374,-982.1,0.00013698,2]
[329862044,1718770239385,-500.0,0.00013698,2]
[329862045,1718770239395,-1413.9,0.00013698,2]
[329862046,1718770239404,-502.25,0.00013698,2]
[329862047,1718770239412,-500.0,0.00013698,2]
[329862049,1718770239421,-558.13601611,0.00013698,2]
[329862050,1718770239432,-990.05,0.00013698,2]
[329862051,1718770239441,-500.0,0.00013698,2]
[329862052,1718770239451,-1003.62,0.00013698,2]
[329862053,1718770239460,-500.0,0.00013698,2]
[329862054,1718770239470,-500.0,0.00013698,2]
[329862055,1718770239479,-500.0,0.00013698,2]
[329862056,1718770239488,-500.0,0.00013698,2]
[329862057,1718770239497,-500.0,0.00013698,2]
[329862058,1718770239507,-500.0,0.00013698,2]
[329862059,1718770239516,-1725.26,0.00013698,2]
[329862060,1718770239526,-500.0,0.00013698,2]
[329862061,1718770239536,-500.0,0.00013698,2]
[329862062,1718770239545,-579.78,0.00013698,2]
[329862063,1718770239555,-500.0,0.00013698,2]
[329862064,1718770239564,-500.0,0.00013698,2]
[329862065,1718770239573,-500.0,0.00013698,2]
[329862066,1718770239583,-1687.68,0.00013698,2]
[329862067,1718770239592,-1458.32,0.00013698,2]
[329862068,1718770239602,-567.8253698,0.00013698,2]
[329862069,1718770239612,-1386.2,0.00013698,2]
[329862070,1718770239622,-500.0,0.00013698,2]
[329862071,1718770239633,-536.94886325,0.00013698,2]
[329862072,1718770239642,-500.0,0.00013698,2]
[329862073,1718770239653,-500.0,0.00013698,2]
[329862074,1718770239663,-671.57,0.00013698,2]
[329862075,1718770239672,-500.0,0.00013698,2]
[329862076,1718770239682,-500.0,0.00013698,2]
[329862077,1718770239691,-719.84,0.00013698,2]
[329862078,1718770239701,-500.0,0.00013698,2]
[329862079,1718770239711,-500.0,0.00013698,2]
[329862080,1718770239720,-656.82,0.00013698,2]
[329862081,1718770239730,-500.0,0.00013698,2]
[329862082,1718770239739,-500.0,0.00013698,2]
[329862083,1718770239748,-500.0,0.00013698,2]
[329862084,1718770239758,-1753.94,0.00013698,2]
[329862085,1718770239767,-940.01,0.00013698,2]
[329862086,1718770239777,-1208.09,0.00013698,2]
[329862087,1718770239787,-860.47,0.00013698,2]
[329862088,1718770239796,-500.0,0.00013698,2]
[329862089,1718770239805,-665.29,0.00013698,2]
[329862090,1718770239815,-612.39,0.00013698,2]
[329862091,1718770239824,-500.0,0.00013698,2]
[329862092,1718770239834,-594.88416471,0.00013698,2]
[329862093,1718770239844,-500.0,0.00013698,2]
[329862094,1718770239853,-500.0,0.00013698,2]
[329862095,1718770239863,-500.0,0.00013698,2]
[329862096,1718770239872,-3326.73,0.00013698,2]
[329862097,1718770239883,-500.0,0.00013698,2]
[329862098,1718770239893,-500.0,0.00013698,2]
[329862099,1718770239903,-500.0,0.00013698,2]
[329862100,1718770239913,-500.0,0.00013698,2]
[329862101,1718770239923,-730.09,0.00013698,2]
[329862102,1718770239933,-500.0,0.00013698,2]
[329862103,1718770239943,-500.0,0.00013698,2]
[329862104,1718770239952,-500.0,0.00013698,2]
[329862105,1718770239962,-287.328037,0.00013698,2]
[329862106,1718770239971,-500.0,0.00013698,2]
[329862107,1718770239981,-957.7,0.00013698,2]
[329862108,1718770239992,-500.0,0.00013698,2]
[329862109,1718770240003,-2397.67,0.00013698,2]
[329862110,1718770240013,-838.3,0.00013698,2]
[329862111,1718770240023,-500.0,0.00013698,2]
[329862112,1718770240033,-500.0,0.00013698,2]
[329862113,1718770240272,-504.43319215,0.00013698,2]
[329862114,1718770240283,-1075.43,0.00013698,2]
[329862115,1718770240293,-2169.55,0.00013698,2]
[329862116,1718770240302,-248.51429,0.00013698,2]
[329862117,1718770240312,-500.0,0.00013698,2]
[329862118,1718770240321,-500.0,0.00013698,2]
[329862119,1718770240331,-500.0,0.00013698,2]
[329862120,1718770240341,-500.0,0.00013698,2]
[329862121,1718770240351,-1231.51,0.00013698,2]
[329862122,1718770240360,-500.0,0.00013698,2]
[329862123,1718770240370,-500.0,0.00013698,2]
[329862124,1718770240380,-500.0,0.00013698,2]
[329862125,1718770240390,-501.70996429,0.00013698,2]
[329862126,1718770240399,-500.0,0.00013698,2]
[329862127,1718770240409,-500.0,0.00013698,2]
[329862128,1718770240419,-500.0,0.00013698,2]
[329862129,1718770240428,-1253.16,0.00013698,2]
[329862130,1718770240437,-500.0,0.00013698,2]
[329862131,1718770240447,-500.0,0.00013698,2]
[329862132,1718770240456,-500.0,0.00013698,2]
[329862133,1718770240466,-500.0,0.00013698,2]
[329862134,1718770240476,-1658.97,0.00013698,2]
[329862135,1718770240486,-842.14,0.00013698,2]
[329862136,1718770240496,-549.5,0.00013698,2]
[329862137,1718770240506,-500.0,0.00013698,2]
[329862138,1718770240515,-708.88,0.00013698,2]
[329862139,1718770240525,-500.0,0.00013698,2]
[329862140,1718770240535,-914.48,0.00013698,2]
[329862141,1718770240545,-500.0,0.00013698,2]
[329862142,1718770240554,-542.54062175,0.00013698,2]
[329862143,1718770240564,-825.93,0.00013698,2]
[329862144,1718770240574,-500.0,0.00013698,2]
[329862145,1718770240583,-615.70387416,0.00013698,2]
[329862146,1718770240593,-639.41,0.00013698,2]